Cogmind - Beta 14 @@@ ROGUE MODE // 2024.09.29 @ 13:15:47 Player: BionicBot Result: Destroyed by DT-YE6(R) with Subdweller Laser Performance ------------- Evolutions (0) 0 Regions Visited (2) 400 Robots Destroyed (23) 115 Value Destroyed (431) 431 Prototype IDs (3) 60 Alien Tech Used (0) 0 Bonus (0) 0 TOTAL SCORE: 1006 Bonus ------- None Cogmind --------- Core Integrity 0/250 Matter 272/300 Energy 76/100 System Corruption 2% Temperature Cool (6) Movement Treading (480) Ox4 Location -10/Subcaves Parts ------- > --- POWER (1) -------- (None) > --- PROPULSION (2) --- Light Treads (fused) Wheel > --- UTILITY (2) ------ Huge Storage Unit > --- WEAPON (2) ------- Subdweller Beam Cannon (fused) Light Cannon > --- INVENTORY (25) --- Wheel Large Storage Unit High-capacity Matter Pod (200) Structural Scanner Signal Interpreter Power Shielding Hacking Suite Subdweller Beam Cannon Assault Rifle Light Assault Rifle Light Assault Rifle Light Assault Rifle Light Assault Rifle Light Assault Rifle Grenade Launcher Grenade Launcher Multitool Peak State ------------ > --- POWER ------------ Ion Engine > --- PROPULSION ------- Light Treads Wheel > --- UTILITY ---------- Huge Storage Unit Subdweller Optics > --- WEAPON ----------- Subdweller Beam Cannon Light Cannon > --- INVENTORY -------- Wheel Large Storage Unit High-capacity Matter Pod Structural Scanner Signal Interpreter Power Shielding Hacking Suite Subdweller Beam Cannon Assault Rifle Light Assault Rifle Light Assault Rifle Light Assault Rifle Light Assault Rifle Light Assault Rifle Grenade Launcher Multitool [Rating: 11] Favorites ----------- Power Ion Engine Engine Ion Engine Propulsion Light Treads Treads Light Treads Wheel Wheel Utility Huge Storage Unit Device Seismic Detector Storage Huge Storage Unit Weapon Light Assault Rifle Energy Cannon Subdweller Beam Cannon Ballistic Gun Light Assault Rifle Ballistic Cannon Light Cannon Build | -11 -10 -10 ------- Run | Yrd Mat Sub Slots Evolved . | . . . Power . | . . . Propulsion . | . . . Utility . | . . . Weapon . | . . . Parts Attached 21 | 7 9 5 Power 2 | 1 1 . Engine 2 | 1 1 . Core . | . . . Reactor . | . . . Propulsion 5 | 2 2 1 Treads 3 | 2 1 . Leg . | . . . Wheel 2 | . 1 1 Hover . | . . . Flight . | . . . Utility 9 | 2 5 2 Device 4 | 1 1 2 Storage 5 | 1 4 . Processor . | . . . Hackware . | . . . Protection . | . . . Artifact . | . . . Weapon 5 | 2 1 2 Energy Gun . | . . . Energy Cannon 1 | . . 1 Ballistic Gun 3 | 2 1 . Ballistic Cannon 1 | . . 1 Launcher . | . . . Special Weapon . | . . . Impact Weapon . | . . . Slashing Weapon . | . . . Piercing Weapon . | . . . Special Melee Weapon . | . . . Unidentified Prototypes . | . . . Parts Lost 5 | . 3 2 Power 2 | . 1 1 Propulsion 2 | . 2 . Utility 1 | . . 1 Weapon . | . . . Highest Loss Streak 2 | . 2 1 To Critical Strikes . | . . . Average Slot Usage (%) 92 | . 98 82 Engine 12 | . 13 9 Treads 21 | . 25 14 Wheel 6 | . 2 14 Device 2 | . 3 1 Storage 20 | . 23 14 Energy Cannon 3 | . . 9 Ballistic Gun 21 | . 28 9 Ballistic Cannon 3 | . . 9 Peak Build Rating 11 | 7 8 11 Average Rating 7 | 5 7 8 On Entrance 4 | . 7 7 Naked Turns . | . . . Heaviest Build 108 | 13 108 98 Greatest Support 40 | 40 40 10 Greatest Overweight (x) 10 | . 10 9 Average Overweight (x) 4 | . 2 8 Largest Inventory Capacity 25 | 8 25 25 Average Capacity 22 | 7 21 25 Most Carried 17 | 2 15 17 Average Carried 11 | 1 10 15 Final Capacity 25 | 8 25 25 Final Carried 17 | 2 14 17 Class Distribution -------------------- 98% | Mutant Dominant Class ---------------- Mutant | -10/Materials Mutant | -10/Subcaves Resources | -11 -10 -10 ----------- Run | Yrd Mat Sub Matter Collected 904 | 291 234 379 Remotely . | . . . Salvage Created 742 | 124 406 212 Parts 58 | 12 35 11 Haulers Intercepted 1 | . 1 . Recyclers Shooed 1 | . 1 . Parts Field Recycled . | . . . Retrieved Matter . | . . . Parts Self-Destructed 12 | . . 12 Prevented . | . . . Kills | -11 -10 -10 ------- Run | Yrd Mat Sub Combat Hostiles Destroyed 16 | . 12 4 Guns 13 | . 12 1 Cannons 3 | . . 3 Classes Destroyed 8 | 2 4 2 Tunneler 3 | 3 . . Hauler 1 | . 1 . Recycler 1 | 1 . . Operator 2 | . 2 . Swarmer 8 | . 7 1 Grunt 5 | . 5 . Artisan 2 | . . 2 Subdweller 3 | . . 3 Best Kill Streak 3 | 3 3 1 Combat Bots Only 3 | . 3 1 Max Kills in Single Turn 1 | 1 1 1 Gunslinging . | . . . Exploded . | . . . Melee . | . . . Uniques/NPCs Destroyed . | . . . Combat | -11 -10 -10 -------- Run | Yrd Mat Sub Hostile Shots Fired 126 | . 87 39 Missed 36 | . 23 13 Damage Taken 953 | . 623 330 Core 255 | . 150 105 Absorbed by Shields . | . . . Core Remaining (%) 100 | 100 . . Volleys Fired 99 | 12 56 31 Largest 2 | 2 2 2 Hottest 115 | 40 40 115 Shots Fired 199 | 24 112 63 Gun 159 | 24 112 23 Cannon 40 | . . 40 Launcher . | . . . Special . | . . . Kinetic 179 | 24 112 43 Thermal 20 | . . 20 Explosive . | . . . Electromagnetic . | . . . Robot Hit Streak 15 | 12 15 8 Robot Miss Streak 6 | 5 6 3 Penetration Max . | . . . Secondary Targets 2 | . 2 . Max Gunslinging Chain 1 | . 1 . Shots Hit Robots 118 | 15 69 34 Core Hits 45 | 10 28 7 Critical Kills . | . . . Critical Parts Destroyed . | . . . Critical Strikes . | . . . Melee Attacks . | . . . Impact . | . . . Slashing . | . . . Piercing . | . . . Sneak Attacks . | . . . Combat Hostiles . | . . . Follow-up Attacks . | . . . Damage Inflicted 1298 | 129 627 542 Guns 868 | 129 627 112 Cannons 430 | . . 430 Explosions . | . . . Melee . | . . . Ramming . | . . . Kinetic 1050 | 129 627 294 Thermal 248 | . . 248 Explosive . | . . . Electromagnetic . | . . . Impact . | . . . Slashing . | . . . Piercing . | . . . Highest Corruption 2 | . 2 2 Average Corruption 2 | . 2 2 Corruption Purged . | . . . Corruption Blocked . | . . . Effects 31 | . 10 21 Message Errors 3 | . 1 2 Matter Fused 8 | . 2 6 Heat Flow Errors 3 | . 2 1 Energy Discharges 6 | . 3 3 Parts Fused 2 | . 1 1 Data Loss (minor) 4 | . . 4 Data Loss (major) 4 | . 1 3 Misfires 1 | . . 1 Overload Shots . | . . . Overflow Damage 22 | . . 22 Projectiles 22 | . . 22 Explosions . | . . . Melee . | . . . Knockbacks 6 | . . 6 Impact . | . . . Kinetic 6 | . . 6 Secondary . | . . . Self-Inflicted Damage . | . . . Shots . | . . . Rammed . | . . . Targets Rammed . | . . . Kicked . | . . . Crushed . | . . . Highest Temperature 205 | . 205 119 Average Temperature 48 | . 45 79 Received Heat Transfer 198 | . 120 78 Siege Activations . | . . . Robots Corrupted . | . . . Combat Hostiles . | . . . Parts Fried . | . . . Impact Corruptions . | . . . Robots Melted . | . . . Combat Hostiles . | . . . Parts Melted . | . . . Heat Transferred 333 | . . 333 Parts Sabotaged . | . . . Parts Stolen . | . . . Parts Stripped . | . . . Power Chain Reactions . | . . . Alert | -11 -10 -10 ------- Run | Yrd Mat Sub Peak Influence 188 | 20 188 . Initial 13 | . 13 . Average 34 | 7 35 . Maximum Alert Level . | . . . Low Security (%) 100 | 100 100 . Level 1 . | . . . Level 2 . | . . . Level 3 . | . . . Level 4 . | . . . Level 5 . | . . . High Security . | . . . Max Security . | . . . Squads Dispatched 2 | . 2 . Investigation . | . . . Extermination . | . . . Reinforcement 2 | . 2 . Assault . | . . . Garrison . | . . . Intercept . | . . . Searches Triggered . | . . . Construction Impeded . | . . . Haulers Reinforced . | . . . Active Scanning Responses . | . . . Cargo Convoy Interrupts . | . . . Stealth | -11 -10 -10 --------- Run | Yrd Mat Sub Distress Signals 3 | . 3 . Communications Jammed . | . . . Distress Signals . | . . . Times Spotted 40 | . 32 8 Peak Tracking Total 5 | . 5 4 Tactical Retreats 3 | . . 3 Traps | -11 -10 -10 ------- Run | Yrd Mat Sub Traps Triggered 1 | . 1 . Indirectly . | . . . Trap Hack Attempts . | . . . Triggered . | . . . Disarmed . | . . . Reprogrammed . | . . . Reused . | . . . Traps Extracted . | . . . Installed . | . . . Triggered . | . . . Machines | -11 -10 -10 ---------- Run | Yrd Mat Sub Machines Disabled . | . . . Max in Single Turn . | . . . Machines Repaired . | . . . Machines Dismantled . | . . . Machines Sabotaged . | . . . Overloaded Fab Kills . | . . . Hacking | -11 -10 -10 --------- Run | Yrd Mat Sub Machines Accessed 8 | . 7 1 Terminals 7 | . 7 . Fabricators . | . . . Repair Stations . | . . . Recycling Units . | . . . Scanalyzers . | . . . Garrison Access . | . . . Total Hacks 21 | . 18 3 Successful 11 | . 8 3 Failed 10 | . 10 . Catastrophic 1 | . 1 . Database Lockouts . | . . . Manual 10 | . 10 . Terminals 18 | . 18 . Fabricators . | . . . Repair Stations . | . . . Recycling Units . | . . . Scanalyzers . | . . . Garrison Access . | . . . Terminal Hacks 7 | . 4 3 Record 3 | . . 3 Prototype ID Bank 2 | . 2 . Zone Layout 2 | . 2 . Fabricator Hacks . | . . . Repair Station Hacks . | . . . Recycling Unit Hacks . | . . . Scanalyzer . | . . . Garrison Access Hacks . | . . . Unauthorized Hacks 4 | . 4 . Terminals 4 | . 4 . Botnet 4 | . 4 . Fabricators . | . . . Repair Stations . | . . . Recycling Units . | . . . Scanalyzers . | . . . Garrison Access . | . . . Data Cores Recovered 1 | . 1 . Used . | . . . Hacking Detections 7 | . 7 . Full Trace Events 1 | . 1 . Feedback Events . | . . . Feedback Blocked . | . . . Robot Schematics Acquired . | . . . Robots Built . | . . . Authchips . | . . . Time . | . . . Total Robot Build Rating . | . . . Part Schematics Acquired . | . . . Parts Built . | . . . Authchips . | . . . Time . | . . . Total Part Build Rating . | . . . Parts Repaired . | . . . Time . | . . . Parts Recycled . | . . . Recycled Matter . | . . . Retrieved Matter . | . . . Retrieved Components . | . . . Parts Scanalyzed . | . . . Part Schematics Acquired . | . . . Parts Damaged . | . . . Bothacking | -11 -10 -10 ------------ Run | Yrd Mat Sub Used RIF Installer . | . . . Robots Hacked . | . . . Non-combat . | . . . Combat . | . . . Robot Hacks Applied . | . . . Relay Couplers Released . | . . . Fabnet Peak Effective % . | . . . Robots Rewired . | . . . Allies Hacked . | . . . Hacks Repelled . | . . . Allies | -11 -10 -10 -------- Run | Yrd Mat Sub Total Allies . | . . . Largest Group . | . . . Highest-Rated Group . | . . . Highest-Rated Ally . | . . . Total Orders . | . . . Ally Attacks . | . . . Total Damage . | . . . Kills . | . . . Allies Corrupted . | . . . Allies Melted . | . . . Intel | -11 -10 -10 ------- Run | Yrd Mat Sub Robot Analysis Total . | . . . Derelict Logs Recovered 1 | . . 1 Drone Launches . | . . . Drone Recoveries . | . . . Exploration | -11 -10 -10 ------------- Run | Yrd Mat Sub Turns Passed 3868 | 133 2465 1270 Spaces Moved 1560 | 59 966 535 Core 4 | 4 . . Treads 825 | 55 770 . Legs . | . . . Wheels 731 | . 196 535 Hover . | . . . Flight . | . . . Fastest Speed 50 | 50 110 200 Average Speed 223 | 152 235 209 Slowest Speed 560 | 160 560 215 Overloaded Moves . | . . . Propulsion Burnouts . | . . . Robots Hopped . | . . . Cave-ins Triggered . | . . . Exploration Rate (%) 49 | 4 98 47 Regions Visited 2 Branch Regions 1 Pre-discovered Areas 2 | . . 2 Known Exits Taken . | . . . Unknown Exits Taken 2 | 1 1 . Scrap Searched . | . . . Spaces Dug . | . . . Terrain Destroyed 5 | . . 5 Melee . | . . . Projectile 5 | . . 5 AOE . | . . . Terrain Rammed . | . . . Walls Destroyed . | . . . Machines Disabled . | . . . Actions | -11 -10 -10 --------- Run | Yrd Mat Sub Total 1774 | 79 1072 623 Wait 73 | . 27 46 Move 1558 | 58 965 535 Hop . | . . . Pick Up 15 | 2 9 4 Fast Attach 13 | 7 5 1 Attach 3 | . 2 1 Detach 5 | . 4 1 Swap 5 | . 2 3 Drop 3 | . 2 1 Fire 99 | 12 56 31 Melee . | . . . Ram . | . . . Kick . | . . . Crush . | . . . Escape Stasis . | . . . Rewire . | . . . Trap . | . . . Miscellaneous . | . . . Route ------- -11/Scrapyard -10/Materials (discovered 6 exits: [*Mat x3] / [*Min x2] / *Sub) -10/Subcaves (discovered 2 exits: [*Mat] / [*Rec]) History --------- Turn | Location | Event 17 | -11/Scrapyard | Discovered new exit (range 16) 134 | -11/Scrapyard | Entered Materials 316 | -10/Materials | Build established: Mutant 413 | -10/Materials | Discovered new exit (range 14) 522 | -10/Materials | Discovered new exit (range 10) 553 | -10/Materials | Discovered new exit (range 16) 942 | -10/Materials | Core integrity fell below 50% 1087 | -10/Materials | Discovered new exit (range 8) 1168 | -10/Materials | Discovered new exit (range 8) 2583 | -10/Materials | Discovered new exit (range 6) 2599 | -10/Materials | Entered Subcaves 2600 | -10/Subcaves | Learned location of Zion (-7) 2639 | -10/Subcaves | Shifting Twisted Machinery released Flamer 2647 | -10/Subcaves | Ambushed by angry Subdweller bent on revenge 2962 | -10/Subcaves | Shifting Twisted Machinery released Sub. Beam Cannon 2968 | -10/Subcaves | Shifting Twisted Machinery released Sub. Optics 3121 | -10/Subcaves | Visited Clippyterm 3127 | -10/Subcaves | Learned Factory trap positions 3190 | -10/Subcaves | Discovered new exit (range 5) 3193 | -10/Subcaves | A swath of the cavern ceiling suddenly collapsed 3441 | -10/Subcaves | Discovered new exit (range 10) 3458 | -10/Subcaves | Core integrity fell below 20% 3672 | -10/Subcaves | Met a Zionite searching for "candidates" 3869 | -10/Subcaves | Destroyed by DT-YE6(R) with Subdweller Laser Last Messages --------------- 03476_ Lgt. Assault Rifle fries itself beyond repair. 03476_ Flight Unit fries itself beyond repair. 03483_ Subatomizers dissect the Sub. Power Source. 03485_ System corrupted: Energy discharge (-27). 03493_ Subatomizers dissect the Sub. Power Source, destroying it. 03502_ Acquired 3 matter. 03525_ System corrupted: Substantial component data lost. 03607_ 92-9OK(z): "She is not going to be happy we haven't found any suitable candidates yet." 03622_ 4>X1B%/OBW MDU>8U7ZJDXB3LV>NXI 03672_ 92-9OK(z): "Hey you! It's really dangerous down here, I feel that you could die at any moment. For your health and safety might I suggest a trip to Zion?" World map confirmed: -7/Zion. 03739_ System corrupted: Energy discharge (-28). 03765_ System corrupted: Sub. Beam Cannon fused. 03787_ System corrupted: Component data lost. 03843_ DT-YE6(R) knocked back. 03854_ DT-YE6(R) affixes Scrap Shield Fragment to Scrap Shield. 03858_ System corrupted: Component data lost. Map ----- +----------------------------------------------------+ | ???## ## ###?????????? ## ???? #?" "" | | ???## ##?? ##???????????? ??# ????## ?##### | | ??## ##???? #?????????????????#??????# ?????? | | ??# ##??????##???????????????????????? #?????? | | ??# ##???????????????????????????????? ??????? | | ??## #????????????????????????????????###??????? | | ??## ##?????????????????????????????????????????? | | ??# #???????##????????????????????????????????? | | ??## #??????# ##???????????????????????????????? | | ???# #???### ##??????????????????????????????? | | ??## #??? ##?????????????????????????????? | | ### ##### ##????????????????????????????? | | ### # #????????????????????????????? | | # #????????????????????????????? | | ## ## #???????????????????????? | | ?# ## #???????????????????????? | | ?# ## #???????#???????????????? | | ?# ### ### ?????##"???????????????? | | ## # ### ### ??????# &???????????????? | | # # # ## ?????# ####????????????? | | ## #????##" % #????????????? | | ##### #?????#"##%"##???????????? | | ??## #?###?#"# " #?##????????? | | ??# ##z ### ### ## ##???????? | | ?## # ### ;# #???????? | | ?# ## #??# @ R% ##???????? | | ?###### ## #??## ###????????? | | ??????## ## #???# ## # #??????????? | | ???????# ##??# #?####### #??????????? | | ??????## #???# ????????## #??????????? | | ??????# ##???## ????????### #??????????? | | ??????# ##????# ??????### ##?????????? | | ??????###### #????# ??????## #?????????? | | ???????????# ##???##??????# ##?????????? | | ???????????## ##??????????# ###??????????? | | ????????????## ###????###?# #????????????? | | ?????????????## ##??# ### ##????????????? | | ??????????????# ### ### ##????????????? | | ?????????????## #?## #??? #???????? | | ?????????????# #####??## ### #???????? | | ?????????????# ##??###### ##??????? | | ?????????###?# ##### # ## #?????? | | ????????## ## ## ## #???? | | ???????## ##?# ? | | ???????# ## ## ## ##???# ### | | ???????## #### ### ######?????####????# ? | | ????????#######??######?#####????????????????????? | | ?????????????????????????????????????????????????? | | ?????????????????????????????????????????????????? | | ?????????????????????????????????????????????????? | +----------------------------------------------------+ Best States ------------- Heat Dissipation 25 Energy Generation 10 Energy Capacity 250 Matter Stores 300 Matter Capacity 300 Sight Range 21 Terrain Scan Density 10 Evasion (%) 40 Recoil Reduction 2 Item Schematics ----------------- None Robot Schematics ------------------ None Fabricated ------------ Nothing Alien Tech Used ----------------- None Achievements -------------- None Challenges ------------ None Game ------ Seed HardenedThermicMicrothruster Manual? 0 Play Time 00:18:13 Cumulative 181.1 hours Start 2024.09.29 @ 12:48:39 End 2024.09.29 @ 13:15:47 Sessions 1 Manual Loads 0 Difficulty Rogue Special Mode None Game No. 143 Rogue 143 Adventurer 0 Explorer 0 Win Type - Total 8 Types 7/0/1/0/0/0/0/0/0 Lore% 49 Gallery% 60 Achievement% 57 Wizard Run 0 Options --------- Layout 0 ASCII 0 Keyboard 1 Movement Numpad Keybinds 0 Fullscreen 2 Font 18/X11 Map View 76x50 Zoom Use 0% Tactical HUD 1 Map Filters NONE Filters NONE Steam 1 RUN: 9a646653-a935-48a3-870b-5cfcea28a640